Cogmind - Beta 16 @@@ ROGUE MODE // 2025.12.07 @ 16:45:22 Player: Sir Cheese Result: Smashed by cave-in Performance ------------- Evolutions (0) 0 Regions Visited (2) 400 Robots Destroyed (20) 100 Value Destroyed (334) 334 Prototype IDs (0) 0 Alien Tech Used (0) 0 Bonus (0) 0 TOTAL SCORE: 834 Bonus ------- None Cogmind --------- Core Integrity 0/250 Matter 300/300 Energy 146/160 System Corruption 2% Temperature Cool (54) Movement Treading (160) Location -10/Mines Parts ------- > --- POWER (1) -------- Light Nuclear Core > --- PROPULSION (2) --- Light Treads Light Treads > --- UTILITY (2) ------ Small Storage Unit Sensor Array > --- WEAPON (2) ------- Mining Laser > --- INVENTORY (8) ---- Light Nuclear Core Structural Scanner Signal Interpreter Improved Terrain Scanner Seismic Detector Beam Cannon Light Assault Rifle Rocket Launcher Peak State ------------ > --- POWER ------------ Light Nuclear Core > --- PROPULSION ------- Light Treads Light Treads > --- UTILITY ---------- Small Storage Unit Sensor Array > --- WEAPON ----------- Beam Cannon Rocket Launcher > --- INVENTORY -------- Light Nuclear Core Structural Scanner Signal Interpreter Improved Terrain Scanner Seismic Detector Small Laser Light Assault Rifle Mining Laser [Rating: 11] Favorites ----------- Power Ion Engine Engine Ion Engine Power Core Light Nuclear Core Propulsion Light Treads Treads Light Treads Utility Small Storage Unit Device Sensor Array Storage Small Storage Unit Weapon Small Laser Energy Gun Small Laser Energy Cannon Beam Cannon Ballistic Gun Light Assault Rifle Launcher Rocket Launcher Special Weapon Mining Laser Build | -11 -10 -10 ------- Run | Yrd Mat Min Slots Evolved . | . . . Power . | . . . Propulsion . | . . . Utility . | . . . Weapon . | . . . Parts Attached 14 | 8 4 2 Power 2 | 1 1 . Engine 1 | 1 . . Core 1 | . 1 . Reactor . | . . . Propulsion 2 | 2 . . Treads 2 | 2 . . Leg . | . . . Wheel . | . . . Hover . | . . . Flight . | . . . Utility 3 | 2 1 . Device 2 | 1 1 . Storage 1 | 1 . . Processor . | . . . Hackware . | . . . Protection . | . . . Artifact . | . . . Weapon 7 | 3 2 2 Energy Gun 1 | 1 . . Energy Cannon 1 | . 1 . Ballistic Gun 2 | 2 . . Ballistic Cannon . | . . . Launcher 1 | . . 1 Special Weapon 2 | . 1 1 Impact Weapon . | . . . Slashing Weapon . | . . . Piercing Weapon . | . . . Special Melee Weapon . | . . . Unidentified Prototypes . | . . . Parts Lost 1 | . . 1 Power . | . . . Propulsion . | . . . Utility . | . . . Weapon 1 | . . 1 Highest Loss Streak 1 | . . 1 To Critical Strikes . | . . . Average Backups 6 | 3 6 8 Power . | . 1 1 Propulsion . | . . . Utility 2 | . 2 4 Weapon 2 | 1 3 2 Tool/Special . | . . . Unused Backups 8 | 1 2 5 Power 2 | . 1 1 Propulsion . | . . . Utility 5 | 1 . 4 Weapon 1 | . 1 . Tool/Special . | . . . Average Slot Usage (%) 99 | . 99 100 Engine 5 | . 12 . Core 8 | . 1 14 Treads 28 | . 28 28 Device 13 | . 13 14 Storage 14 | . 14 14 Energy Gun 9 | . 5 13 Energy Cannon 13 | . 13 13 Ballistic Gun 4 | . 8 . Peak Build Rating 11 | 7 10 11 Average Rating 8 | 6 7 10 On Entrance 5 | . 7 10 Avg Prop Armor Cover (%) . | . . . Naked Turns . | . . . Heaviest Build 18 | 13 15 18 Greatest Support 40 | 40 40 40 Greatest Overweight (x) 1 | 1 . . Average Overweight (x) . | . . . Largest Inventory Capacity 8 | 8 8 8 Average Capacity 7 | 7 8 8 Most Carried 8 | 5 8 8 Average Carried 6 | 3 6 8 Final Capacity 8 | 8 8 8 Final Carried 8 | 4 8 8 Class Distribution -------------------- 100% | Mutant Dominant Class ---------------- Mutant | -10/Materials Mutant | -10/Mines Resources | -11 -10 -10 ----------- Run | Yrd Mat Min Matter Collected 450 | 305 85 60 Remotely . | . . . Salvage Created 556 | 216 296 44 Parts 47 | 24 18 5 Haulers Intercepted . | . . . Recyclers Shooed . | . . . Parts Field Recycled . | . . . Retrieved Matter . | . . . Parts Self-Destructed . | . . . Prevented . | . . . Parts Restored . | . . . Kills | -11 -10 -10 ------- Run | Yrd Mat Min Combat Hostiles Destroyed 9 | . 5 4 Guns 2 | . 1 1 Cannons 5 | . 4 1 AOE 2 | . . 2 Classes Destroyed 7 | 1 4 2 Tunneler 9 | 9 . . Mechanic 1 | . 1 . Operator 1 | . 1 . Watcher 1 | . 1 . Swarmer 3 | . . 3 Grunt 5 | . 5 . Assembled 1 | . . 1 Best Kill Streak 5 | 3 5 3 Combat Bots Only 4 | . 4 3 Max Kills in Single Turn 1 | 1 1 1 Gunslinging . | . . . Exploded 1 | . . 1 Melee . | . . . Uniques/NPCs Destroyed . | . . . Combat | -11 -10 -10 -------- Run | Yrd Mat Min Hostile Shots Fired 30 | . 14 16 Missed 11 | . 6 5 Hits 19 | . 8 11 Melee 4 | . . 4 Projectile 15 | . 8 7 Critical Strikes 2 | . 2 . Damage Taken 576 | . 132 444 Core 255 | . 27 228 Absorbed by Shields . | . . . Regen/Repaired (Parts) 11 | . 11 . Core Remaining (%) 100 | 100 . . Volleys Fired 55 | 25 19 11 Largest 2 | 2 2 2 Hottest 100 | 60 100 100 Shots Fired 103 | 49 35 19 Gun 73 | 49 18 6 Cannon 22 | . 14 8 Launcher 2 | . . 2 Special 6 | . 3 3 Kinetic 31 | 25 6 . Thermal 70 | 24 29 17 Explosive 2 | . . 2 Electromagnetic . | . . . Robot Hit Streak 11 | 11 7 3 Robot Miss Streak 3 | 3 3 3 Penetration Max . | . . . Secondary Targets . | . . . Shots Hit Robots 52 | 31 16 5 Core Hits 27 | 10 12 5 Critical Kills . | . . . Critical Parts Destroyed . | . . . Critical Strikes . | . . . Melee Attacks . | . . . Impact . | . . . Slashing . | . . . Piercing . | . . . Sneak Attacks . | . . . Combat Hostiles . | . . . Follow-up Attacks . | . . . Damage Inflicted 729 | 290 228 211 Guns 408 | 290 84 34 Cannons 177 | . 142 35 Explosions 142 | . . 142 Melee . | . . . Ramming 2 | . 2 . Kinetic 123 | 106 17 . Thermal 462 | 184 209 69 Explosive 142 | . . 142 Electromagnetic . | . . . Impact . | . . . Slashing . | . . . Piercing . | . . . Highest Corruption 1 | . 1 1 Average Corruption 1 | . 1 1 Corruption Purged . | . . . Corruption Blocked . | . . . Effects 6 | . 3 3 Message Errors 2 | . 1 1 Matter Fused 2 | . 1 1 Energy Discharges 1 | . . 1 Data Loss (minor) 1 | . 1 . Overload Shots . | . . . Overflow Damage 38 | . . 38 Projectiles . | . . . Explosions 38 | . . 38 Melee . | . . . Knockbacks . | . . . Impact . | . . . Kinetic . | . . . Secondary . | . . . Self-Inflicted Damage 34 | . . 34 Shots 1 | . . 1 Rammed . | . . . Targets Rammed 1 | . 1 . Kicked . | . . . Crushed 1 | . 1 . Highest Temperature 228 | 20 228 146 Average Temperature 51 | 14 71 54 Received Heat Transfer 96 | . 96 . Siege Activations . | . . . Martial Activations . | . . . Shielding Activations . | . . . Robots Disrupted . | . . . Combat Hostiles . | . . . Robots Corrupted . | . . . Combat Hostiles . | . . . Parts Fried . | . . . Impact Corruptions . | . . . Robots Melted . | . . . Combat Hostiles . | . . . Parts Melted . | . . . Heat Transferred 1020 | 425 446 149 Parts Sabotaged . | . . . Parts Stolen . | . . . Parts Stripped . | . . . Power Chain Reactions . | . . . Alert | -11 -10 -10 ------- Run | Yrd Mat Min Maximum Alert Level . | . . . Low Security (%) 100 | 100 100 100 Level 1 . | . . . Level 2 . | . . . Level 3 . | . . . Level 4 . | . . . Level 5 . | . . . High Security . | . . . Max Security . | . . . Peak Influence 92 | 10 92 81 Initial 25 | . . 25 Average 10 | . 14 14 Influence Increases 285 | 45 147 93 Destroy 0b10 Robot/C 160 | . 100 60 Destroy 0b10 Robot/NC 60 | 45 15 . Destroy Leader 32 | . 22 10 Successful Hack 7 | . 7 . Destroy Structure 26 | . 3 23 Influence Decreases 285 | 45 82 158 Entered New Map 40 | . . 40 Time Decay 243 | 45 82 116 Lost Part 2 | . . 2 Squads Dispatched 1 | . 1 . Investigation . | . . . Extermination . | . . . Reinforcement 1 | . 1 . Assault . | . . . Garrison . | . . . Intercept . | . . . Searches Triggered . | . . . Construction Impeded . | . . . Haulers Reinforced . | . . . Active Scanning Responses . | . . . Cargo Convoy Interrupts . | . . . Stealth | -11 -10 -10 --------- Run | Yrd Mat Min Distress Signals 1 | . 1 . Communications Jammed . | . . . Distress Signals . | . . . Times Spotted 12 | . 8 4 Peak Tracking Total 6 | . 6 3 Tactical Retreats . | . . . Traps | -11 -10 -10 ------- Run | Yrd Mat Min Traps Triggered 2 | . 2 . Indirectly . | . . . Trap Hack Attempts . | . . . Triggered . | . . . Disarmed . | . . . Reprogrammed . | . . . Reused . | . . . Traps Extracted . | . . . Installed . | . . . Triggered . | . . . Machines | -11 -10 -10 ---------- Run | Yrd Mat Min Machines Disabled . | . . . Max in Single Turn . | . . . Machines Repaired . | . . . Machines Dismantled . | . . . Machines Sabotaged . | . . . Overloaded Fab Kills . | . . . Hacking | -11 -10 -10 --------- Run | Yrd Mat Min Machines Accessed 5 | . 5 . Terminals 3 | . 3 . Fabricators . | . . . Repair Stations 1 | . 1 . Recycling Units 1 | . 1 . Scanalyzers . | . . . Garrison Access . | . . . Total Hacks 10 | . 10 . Successful 6 | . 6 . Failed 4 | . 4 . Catastrophic 1 | . 1 . Database Lockouts . | . . . Manual 3 | . 3 . Terminals 6 | . 6 . Fabricators . | . . . Repair Stations 2 | . 2 . Recycling Units 2 | . 2 . Scanalyzers . | . . . Garrison Access . | . . . Terminal Hacks 2 | . 2 . Robot Analysis 1 | . 1 . Locate Traps 1 | . 1 . Fabricator Hacks . | . . . Repair Station Hacks 2 | . 2 . Scan Component 1 | . 1 . Repair 1 | . 1 . Recycling Unit Hacks 2 | . 2 . Report Inventory 1 | . 1 . Retrieve Components 1 | . 1 . Scanalyzer . | . . . Garrison Access Hacks . | . . . Unauthorized Hacks . | . . . Terminals . | . . . Fabricators . | . . . Repair Stations . | . . . Recycling Units . | . . . Scanalyzers . | . . . Garrison Access . | . . . Data Cores Recovered . | . . . Used . | . . . Hacking Detections 4 | . 4 . Full Trace Events . | . . . Feedback Events . | . . . Feedback Blocked . | . . . Robot Schematics Acquired . | . . . Robots Built . | . . . Authchips . | . . . Time . | . . . Total Robot Build Rating . | . . . Part Schematics Acquired . | . . . Parts Built . | . . . Authchips . | . . . Time . | . . . Total Part Build Rating . | . . . Part Studies Acquired . | . . . Parts Repaired 1 | . 1 . Time 26 | . 26 . Parts Recycled . | . . . Recycled Matter . | . . . Retrieved Matter . | . . . Retrieved Components 3 | . 3 . Parts Scanalyzed . | . . . Part Schematics Acquired . | . . . Parts Damaged . | . . . Bothacking | -11 -10 -10 ------------ Run | Yrd Mat Min Used RIF Installer . | . . . Robots Hacked . | . . . Non-combat . | . . . Combat . | . . . Robot Hacks Applied . | . . . Relay Couplers Released . | . . . Fabnet Peak Effective % . | . . . Robots Rewired . | . . . Allies Hacked . | . . . Hacks Repelled . | . . . Allies | -11 -10 -10 -------- Run | Yrd Mat Min Total Allies . | . . . Largest Group . | . . . Highest-Rated Group . | . . . Highest-Rated Ally . | . . . Total Orders . | . . . Ally Attacks . | . . . Total Damage . | . . . Kills . | . . . Allies Corrupted . | . . . Allies Melted . | . . . Intel | -11 -10 -10 ------- Run | Yrd Mat Min Active Infowar (turns) 1400 | 341 507 552 Sensors 897 | . 345 552 Seismic 503 | 341 162 . Robot Analysis Total 1 | . 1 . Derelict Logs Recovered 1 | . . 1 Drone Launches . | . . . Drone Recoveries . | . . . Exploration | -11 -10 -10 ------------- Run | Yrd Mat Min Turns Passed 1537 | 451 535 551 Spaces Moved 819 | 232 274 313 Core 7 | 7 . . Treads 812 | 225 274 313 Legs . | . . . Wheels . | . . . Hover . | . . . Flight . | . . . Fastest Speed 50 | 50 160 160 Average Speed 159 | 157 160 160 Slowest Speed 160 | 160 160 160 Overloaded Moves . | . . . Propulsion Burnouts . | . . . Robots Hopped . | . . . Potential Cave-ins . | . . . Cave-ins Triggered 1 | . . 1 Exploration Rate (%) 41 | 9 63 53 Regions Visited 2 Branch Regions 1 Pre-discovered Areas 1 | . . 1 Known Exits Taken . | . . . Unknown Exits Taken 2 | 1 1 . Scrap Searched 1 | . . 1 Spaces Dug 6 | . 3 3 Terrain Destroyed 28 | . 3 25 Melee . | . . . Projectile 6 | . 3 3 AOE 22 | . . 22 Terrain Rammed . | . . . Walls Destroyed . | . . . Machines Disabled . | . . . Actions | -11 -10 -10 --------- Run | Yrd Mat Min Total 941 | 271 330 340 Wait 28 | . 17 11 Move 817 | 231 273 313 Hop . | . . . Pick Up 15 | 6 8 1 Fast Attach 8 | 6 2 . Attach 1 | 1 . . Detach . | . . . Swap 9 | 1 5 3 Drop 7 | 1 5 1 Fire 55 | 25 19 11 Melee . | . . . Ram . | . . . Kick . | . . . Crush 1 | . 1 . Escape Stasis . | . . . Rewire . | . . . Trap . | . . . Miscellaneous . | . . . Route ------- -11/Scrapyard -10/Materials (discovered 2 exits: [*Min x2]) -10/Mines (discovered 1 exit: [*Mat]) History --------- Turn | Location | Event 5 | -11/Scrapyard | Discovered new exit (range 15) 452 | -11/Scrapyard | Entered Materials 453 | -10/Materials | Build established: Mutant 794 | -10/Materials | Repaired Sensor Array 800 | -10/Materials | Discovered new exit (range 16) 931 | -10/Materials | Discovered new exit (range 11) 952 | -10/Materials | Derelicts attacked the area 987 | -10/Materials | Entered Mines 994 | -10/Mines | Received a Rocket Launcher from a helpful Derelict 1031 | -10/Mines | Learned location of Storage (-7) 1199 | -10/Mines | Discovered new exit (range 7) 1481 | -10/Mines | Excavation squad dispatched 1481 | -10/Mines | A large section of the Mines collapsed 1539 | -10/Mines | Crushed by falling debris 1539 | -10/Mines | Smashed by cave-in Last Messages --------------- System corrupted: Energy discharge (-59). EXIT=FOUND 10 Matter crushed. Lgt. Ion Engine crushed. Flight Unit crushed. Sensor Array crushed. ALERT: Suspicious cave-in, suspected derelict activity in mines. Dispatching escorted excavation squad. 9AJCDTIPUX=AP,TFU3OJ6JP# ZKS T-07 Excavator is excavating. as-08312 destroyed. K-01 Serf collects debris. Acquired 5 matter. K-01 Serf collects debris. Acquired 10 matter. The unstable cave ceiling collapses. Crushed by falling debris. Sml. Laser destroyed. System corrupted by crushing effect (+1). Map ----- +----------------------------------------------------+ | ????????????# ### ##??????????? | | ????????????# #### ### #??????????? | | ????????????# ##??## ### #??????????? | | ????????????## ##????## ## #??????????? | | ????????????## #??????# #??????????? | | ????????????# #?????## ##???####??? | | ????????????# ##????# #### ##?? | | ????????????# #???## ### #?? | | ????????????## #??## ##?## #?? | | ???####?####### ##### #???## ##?? | | ??## ### ######## ##???# #??? | | ??# ##??## #???# #??? | | ??# #### #???# ##??? | | ??## ### #???# ###???? | | ???## ##?# #???## ##?????? | | ####### #### ##??# ##??## #??????? | | ##########??## #???# #??# #??????? | | ##?????????# ##?## #??# #??????? | | # ##????????# ### #??#####??????? | | # ##???????# k ##?????????????? | | #! #???????# ? ##??????????????? | | # #???????## #####??????#########? | | ## ##????????## ##??????????# #? | | ?## ####??????????## ##??????????# #? | | ??# #??????????????## ##?????????# #? | | ??# #???????????????## %@#????###### #? | | ??# #???????????????## #; #???# < #? | | ??# #???????????????# ####??## #? | | ??# #???????????????# ####?# ### #? | | ??# #???????????????# #### ###########? | | ??# #???????????????## ? ### #?????????? | | ??# #????????????????#/## #?????????? | | ??# #????????????##### ###? ? ##????????? | | ??# #??????????### #?#### #????????? | | ??# #??????????# *!##?# #????????? | | ??# #??????????# # ##### ##????????? | | ??# #??????????# # #%% ## ##?????????? | | ??# #??????????# # # ###??????????? | | ??# #??????????# # ? ?# ##????????????? | | ??# ####???????# # # #?????????????? | | ??# #??###### ### ##?????????????? | | ??# #?## #########??????????????? | | ??### ### #??????????????????????? | | ????# #??????????????????????? | | ????# ##?#####?????####???????? | | ????###### ##?## ##???## ##??????? | | ?????????# #### ##?## ##?????? | | ?????????## ## #?# ##????? | | ??????????## ### #????? | | ???????????## ## #????? | +----------------------------------------------------+ Best States ------------- Heat Dissipation 25 Energy Generation 14 Energy Capacity 250 Matter Stores 300 Matter Capacity 300 Sight Range 16 Robot Scan Range 14 Terrain Scan Density 10 Evasion (%) 40 Recoil Reduction 2 Item Schematics ----------------- None Robot Schematics ------------------ None Fabricated ------------ Nothing Repaired ---------- Sensor Array | 45% | -10/Materials Studied --------- None Alien Tech Used ----------------- None Achievements -------------- None Challenges ------------ None Game ------ Seed LauncherPartitionDrivehammer Manual? 0 Play Time 00:10:50 Cumulative 43.3 hours Start 2025.12.07 @ 16:36:24 End 2025.12.07 @ 16:45:22 Sessions 1 Manual Loads 0 Difficulty Rogue Special Mode None Game No. 43 Rogue 15 Adventurer 21 Explorer 7 Win Type - Total 1 Types 1/0/0/0/0/0/0/0/0/0 Lore% 42 Gallery% 40 Achievement% 33 Wizard Run 0 Options --------- Layout 1 ASCII 0 Keyboard 0 Movement Mouse Keybinds 0 Fullscreen 1 Font 48/Smallcaps Map View 50x35 Zoom Use 0% Tactical HUD 0 Map Filters NONE Filters NONE Steam 1 RUN: 7c993988-fa52-4b52-b82a-312ec9899975